[Event "Early-Titled-Tuesday-Blitz-May-14-2024"]
[Site "Chess.com"]
[Date "2024.05.14"]
[Round "3"]
[White "Legendinunknown"]
[Black "CristhianPortalR"]
[Result "1-0"]
[WhiteElo "2829"]
[BlackElo "2538"]
[TimeControl "180+1"]
[EndTime "8:29:40 PDT"]
[Termination "Legendinunknown won by checkmate"]

1. Nf3 {[%clk 0:03:00.9]} 1... d5 {[%clk 0:02:59.2]} 2. c4 {[%clk 0:03:00.5]}
2... c6 {[%clk 0:02:59]} 3. d4 {[%clk 0:02:59.8]} 3... Nf6 {[%clk 0:02:59]} 4.
Nbd2 {[%clk 0:02:59.7]} 4... e6 {[%clk 0:02:57]} 5. e3 {[%clk 0:02:59.5]} 5...
Ne4 {[%clk 0:02:51.2]} 6. Qc2 {[%clk 0:02:58]} 6... f5 {[%clk 0:02:50.9]} 7. Bd3
{[%clk 0:02:57.3]} 7... Bd6 {[%clk 0:02:47.9]} 8. O-O {[%clk 0:02:51.8]} 8...
Nd7 {[%clk 0:02:47.5]} 9. Ne1 {[%clk 0:02:45.1]} 9... Qh4 {[%clk 0:02:45.4]} 10.
g3 {[%clk 0:02:40.2]} 10... Qh3 {[%clk 0:02:36.4]} 11. Ng2 {[%clk 0:02:38.6]}
11... O-O {[%clk 0:02:31.8]} 12. f4 {[%clk 0:02:30.1]} 12... Ndf6 {[%clk
0:02:26]} 13. Nxe4 {[%clk 0:02:22]} 13... Ng4 {[%clk 0:02:11.4]} 14. Nf6+ {[%clk
0:02:15.5]} 14... Rxf6 {[%clk 0:01:14.3]} 15. Nh4 {[%clk 0:02:11.9]} 15... Rh6
{[%clk 0:01:12.3]} 16. Nf3 {[%clk 0:02:09.6]} 16... Qh5 {[%clk 0:00:59.8]} 17.
Qg2 {[%clk 0:02:05]} 17... Bd7 {[%clk 0:00:59.3]} 18. Bd2 {[%clk 0:02:01.2]}
18... Kh8 {[%clk 0:00:53.7]} 19. Rfe1 {[%clk 0:01:56.2]} 19... Rg8 {[%clk
0:00:52.7]} 20. Be2 {[%clk 0:01:49.8]} 20... Be7 {[%clk 0:00:45.9]} 21. Ne5
{[%clk 0:01:40.5]} 21... Be8 {[%clk 0:00:43.4]} 22. Nxg4 {[%clk 0:01:25.3]}
22... fxg4 {[%clk 0:00:42.5]} 23. Bd3 {[%clk 0:01:25.8]} 23... Qf7 {[%clk
0:00:36.1]} 24. e4 {[%clk 0:01:21.8]} 24... Qf6 {[%clk 0:00:33.3]} 25. Bc3
{[%clk 0:01:20.3]} 25... dxc4 {[%clk 0:00:19.4]} 26. e5 {[%clk 0:01:17.3]} 26...
Qf8 {[%clk 0:00:18.8]} 27. Bxc4 {[%clk 0:01:17.5]} 27... Rh5 {[%clk 0:00:16.9]}
28. Bxe6 {[%clk 0:01:15.9]} 28... Bf7 {[%clk 0:00:16.6]} 29. Bxg4 {[%clk
0:01:15.8]} 29... Rh6 {[%clk 0:00:15.4]} 30. Rad1 {[%clk 0:01:13.9]} 30... Bd5
{[%clk 0:00:15.1]} 31. Bf3 {[%clk 0:01:13.9]} 31... Bxa2 {[%clk 0:00:14.6]} 32.
Ra1 {[%clk 0:01:13.6]} 32... Bc4 {[%clk 0:00:12.6]} 33. Rxa7 {[%clk 0:01:13.9]}
33... Ba6 {[%clk 0:00:12.7]} 34. d5 {[%clk 0:01:07.1]} 34... Bc5+ {[%clk
0:00:12.2]} 35. Kh1 {[%clk 0:01:06.6]} 35... Bxa7 {[%clk 0:00:12.6]} 36. e6
{[%clk 0:01:05.3]} 36... cxd5 {[%clk 0:00:12.3]} 37. Bxd5 {[%clk 0:01:05.1]}
37... Qd6 {[%clk 0:00:09.4]} 38. Qe4 {[%clk 0:01:02]} 38... Re8 {[%clk
0:00:08.2]} 39. e7 {[%clk 0:00:49.5]} 39... Qb6 {[%clk 0:00:07.2]} 40. Qf5
{[%clk 0:00:37.5]} 40... Qc5 {[%clk 0:00:03.1]} 41. Bxg7+ {[%clk 0:00:32.5]}
41... Kxg7 {[%clk 0:00:01.8]} 42. Qf7+ {[%clk 0:00:33]} 42... Kh8 {[%clk
0:00:01.9]} 43. Qxe8+ {[%clk 0:00:33.7]} 43... Kg7 {[%clk 0:00:01.9]} 44. Qf8+
{[%clk 0:00:34.3]} 44... Kg6 {[%clk 0:00:02.1]} 45. e8=Q# {[%clk 0:00:34.1]} 1-0

[Event "Early-Titled-Tuesday-Blitz-May-14-2024"]
[Site "Chess.com"]
[Date "2024.05.14"]
[Round "3"]
[White "Nasrin_Babayeva"]
[Black "AnnaChessLook"]
[Result "0-1"]
[WhiteElo "1925"]
[BlackElo "2353"]
[TimeControl "180+1"]
[EndTime "8:29:40 PDT"]
[Termination "AnnaChessLook won by resignation"]

1. c4 {[%clk 0:03:00.9]} 1... Nf6 {[%clk 0:02:39.8]} 2. g3 {[%clk 0:02:59.9]}
2... c5 {[%clk 0:02:39.7]} 3. Bg2 {[%clk 0:02:58.9]} 3... g6 {[%clk 0:02:40.2]}
4. Nc3 {[%clk 0:02:57]} 4... Bg7 {[%clk 0:02:40.4]} 5. Nf3 {[%clk 0:02:57.6]}
5... O-O {[%clk 0:02:40.9]} 6. O-O {[%clk 0:02:58]} 6... Nc6 {[%clk 0:02:41.2]}
7. d3 {[%clk 0:02:58.6]} 7... d6 {[%clk 0:02:41.7]} 8. a3 {[%clk 0:02:58.9]}
8... Rb8 {[%clk 0:02:36.8]} 9. Rb1 {[%clk 0:02:58.2]} 9... a6 {[%clk 0:02:37.5]}
10. b4 {[%clk 0:02:58]} 10... cxb4 {[%clk 0:02:38]} 11. axb4 {[%clk 0:02:58.3]}
11... b5 {[%clk 0:02:38.8]} 12. cxb5 {[%clk 0:02:38.3]} 12... axb5 {[%clk
0:02:39.7]} 13. Bd2 {[%clk 0:02:34]} 13... d5 {[%clk 0:02:34.6]} 14. Bf4 {[%clk
0:02:28.9]} 14... Rb6 {[%clk 0:02:32.9]} 15. d4 {[%clk 0:02:15]} 15... Bf5
{[%clk 0:02:31.4]} 16. Rb3 {[%clk 0:02:11.5]} 16... Ne4 {[%clk 0:02:31.2]} 17.
e3 {[%clk 0:01:25.2]} 17... Nxc3 {[%clk 0:02:28.2]} 18. Rxc3 {[%clk 0:01:26.1]}
18... Nxb4 {[%clk 0:02:28.4]} 19. Qb3 {[%clk 0:01:26.2]} 19... Nc6 {[%clk
0:02:23.7]} 20. Rc5 {[%clk 0:01:22.9]} 20... b4 {[%clk 0:02:00.3]} 21. Rxd5
{[%clk 0:00:55.4]} 21... Qc8 {[%clk 0:01:58.4]} 22. Rc5 {[%clk 0:00:49.6]} 22...
Qa6 {[%clk 0:01:48.1]} 23. Nh4 {[%clk 0:00:21.4]} 23... Na5 {[%clk 0:01:38.9]}
24. Qa4 {[%clk 0:00:18.6]} 24... Bd3 {[%clk 0:01:03.7]} 25. Rxa5 {[%clk
0:00:17.3]} 25... Qc8 {[%clk 0:00:58.5]} 26. Ra1 {[%clk 0:00:13.9]} 26... b3
{[%clk 0:00:57]} 27. Rc5 {[%clk 0:00:09]} 27... Qg4 {[%clk 0:00:51.1]} 28. h3
{[%clk 0:00:08.1]} 28... Qe2 {[%clk 0:00:50]} 29. Bf1 {[%clk 0:00:07.9]} 29...
Qd2 {[%clk 0:00:47.6]} 30. Bxd3 {[%clk 0:00:08.2]} 30... Qxd3 {[%clk 0:00:48.5]}
31. Qa3 {[%clk 0:00:05.5]} 31... b2 {[%clk 0:00:46.2]} 32. Qxd3 {[%clk
0:00:05.2]} 32... bxa1=Q+ {[%clk 0:00:46.3]} 33. Kh2 {[%clk 0:00:05.8]} 33...
Rb2 {[%clk 0:00:42.4]} 34. Rc2 {[%clk 0:00:05.5]} 34... Rb1 {[%clk 0:00:41.2]}
35. Kg2 {[%clk 0:00:04.2]} 35... Rg1+ {[%clk 0:00:35.9]} 36. Kf3 {[%clk
0:00:04.7]} 36... Qa8+ {[%clk 0:00:35.9]} 37. e4 {[%clk 0:00:04.3]} 37... h5
{[%clk 0:00:34.1]} 38. Rc3 {[%clk 0:00:01.8]} 38... Rd8 {[%clk 0:00:32.9]} 39.
d5 {[%clk 0:00:01.8]} 39... Bxc3 {[%clk 0:00:29.5]} 40. Qxc3 {[%clk 0:00:02.4]}
40... Ra1 {[%clk 0:00:25.6]} 41. Bh6 {[%clk 0:00:02.5]} 41... Ra3 {[%clk
0:00:25.6]} 42. Qxa3 {[%clk 0:00:01.2]} 42... Qxa3+ {[%clk 0:00:24.1]} 43. Kg2
{[%clk 0:00:02.1]} 43... Qb4 {[%clk 0:00:24]} 0-1

[Event "Early-Titled-Tuesday-Blitz-May-14-2024"]
[Site "Chess.com"]
[Date "2024.05.14"]
[Round "3"]
[White "aljado"]
[Black "Josgar05"]
[Result "0-1"]
[WhiteElo "2142"]
[BlackElo "2443"]
[TimeControl "180+1"]
[EndTime "8:29:41 PDT"]
[Termination "Josgar05 won on time"]

1. e4 {[%clk 0:03:00.9]} 1... g6 {[%clk 0:02:58.2]} 2. d4 {[%clk 0:02:59.4]}
2... Bg7 {[%clk 0:02:58.4]} 3. Nc3 {[%clk 0:02:59.7]} 3... c6 {[%clk 0:02:58.8]}
4. Nf3 {[%clk 0:02:59.2]} 4... d5 {[%clk 0:02:56.9]} 5. exd5 {[%clk 0:02:58.5]}
5... cxd5 {[%clk 0:02:56.8]} 6. Bb5+ {[%clk 0:02:57.4]} 6... Nc6 {[%clk
0:02:54.6]} 7. O-O {[%clk 0:02:55.5]} 7... Nf6 {[%clk 0:02:51]} 8. Ne5 {[%clk
0:02:53.1]} 8... Bd7 {[%clk 0:02:46.4]} 9. Nxd7 {[%clk 0:02:52.5]} 9... Qxd7
{[%clk 0:02:47.3]} 10. Bg5 {[%clk 0:02:51.1]} 10... O-O {[%clk 0:02:43.4]} 11.
Re1 {[%clk 0:02:49.9]} 11... a6 {[%clk 0:02:40.4]} 12. Ba4 {[%clk 0:02:47.3]}
12... b5 {[%clk 0:02:39.1]} 13. Bb3 {[%clk 0:02:46.9]} 13... e6 {[%clk
0:02:39.3]} 14. a4 {[%clk 0:02:23.3]} 14... b4 {[%clk 0:02:39]} 15. Ne2 {[%clk
0:02:22.9]} 15... Ne4 {[%clk 0:02:36.7]} 16. Be3 {[%clk 0:02:20.5]} 16... a5
{[%clk 0:02:28.7]} 17. c4 {[%clk 0:02:07.6]} 17... bxc3 {[%clk 0:02:20.9]} 18.
Nxc3 {[%clk 0:02:02.4]} 18... Nd6 {[%clk 0:02:15.8]} 19. Rc1 {[%clk 0:01:54.3]}
19... Rab8 {[%clk 0:02:12.6]} 20. Re2 {[%clk 0:01:35.6]} 20... Nxd4 {[%clk
0:01:47]} 21. Bxd4 {[%clk 0:01:30.2]} 21... Bxd4 {[%clk 0:01:42.7]} 22. Qxd4
{[%clk 0:01:30.3]} 22... Rxb3 {[%clk 0:01:40]} 23. Qc5 {[%clk 0:01:19.4]} 23...
Nc4 {[%clk 0:01:29.8]} 24. Nb5 {[%clk 0:01:00.3]} 24... Rc8 {[%clk 0:01:27]} 25.
Qd4 {[%clk 0:00:52.9]} 25... Rb4 {[%clk 0:01:22.2]} 26. Qf6 {[%clk 0:00:43.9]}
26... Nd6 {[%clk 0:01:18.3]} 27. Rxc8+ {[%clk 0:00:39.7]} 27... Qxc8 {[%clk
0:01:19.2]} 28. Re1 {[%clk 0:00:36.1]} 28... Nxb5 {[%clk 0:01:17.4]} 29. axb5
{[%clk 0:00:36.7]} 29... Rxb5 {[%clk 0:01:17.7]} 30. h4 {[%clk 0:00:35.8]} 30...
h5 {[%clk 0:01:14.1]} 31. g4 {[%clk 0:00:33.6]} 31... Qc4 {[%clk 0:00:57.1]} 32.
gxh5 {[%clk 0:00:31.9]} 32... Qg4+ {[%clk 0:00:57.1]} 33. Kf1 {[%clk 0:00:29.5]}
33... Qxh5 {[%clk 0:00:56.9]} 34. Rc1 {[%clk 0:00:26]} 34... Rb8 {[%clk
0:00:53.2]} 35. Rc7 {[%clk 0:00:12.5]} 35... Rf8 {[%clk 0:00:53.3]} 36. Ra7
{[%clk 0:00:12.1]} 36... a4 {[%clk 0:00:49.9]} 37. Qc3 {[%clk 0:00:08.4]} 37...
Qd1+ {[%clk 0:00:47.5]} 38. Kg2 {[%clk 0:00:07.5]} 38... Qg4+ {[%clk 0:00:48]}
39. Kf1 {[%clk 0:00:07.1]} 39... Qxh4 {[%clk 0:00:48.7]} 40. Qe5 {[%clk
0:00:03.6]} 40... Qh3+ {[%clk 0:00:47.1]} 41. Ke2 {[%clk 0:00:03.5]} 41... Qf5
{[%clk 0:00:44.5]} 42. Qd4 {[%clk 0:00:02.6]} 42... Rc8 {[%clk 0:00:42]} 43.
Rxa4 {[%clk 0:00:01.5]} 43... Rc2+ {[%clk 0:00:41.9]} 44. Kf1 {[%clk 0:00:01.5]}
44... Qh3+ {[%clk 0:00:30.9]} 45. Kg1 {[%clk 0:00:01.4]} 45... Rc1+ {[%clk
0:00:29.5]} 0-1

[Event "Early-Titled-Tuesday-Blitz-May-14-2024"]
[Site "Chess.com"]
[Date "2024.05.14"]
[Round "3"]
[White "KnightDuta"]
[Black "Art10ECHR"]
[Result "1-0"]
[WhiteElo "2721"]
[BlackElo "2500"]
[TimeControl "180+1"]
[EndTime "8:29:43 PDT"]
[Termination "KnightDuta won on time"]

1. d4 {[%clk 0:03:00.9]} 1... d5 {[%clk 0:02:58.6]} 2. Bf4 {[%clk 0:03:01.1]}
2... Nf6 {[%clk 0:02:53.7]} 3. e3 {[%clk 0:03:01.5]} 3... g6 {[%clk 0:02:53.7]}
4. Nc3 {[%clk 0:03:01.5]} 4... c6 {[%clk 0:02:51.8]} 5. h4 {[%clk 0:03:02.1]}
5... h5 {[%clk 0:02:51.2]} 6. Nf3 {[%clk 0:03:01.8]} 6... Bg4 {[%clk 0:02:48]}
7. Be2 {[%clk 0:03:02.2]} 7... Bxf3 {[%clk 0:02:47.1]} 8. Bxf3 {[%clk
0:03:03.1]} 8... Nbd7 {[%clk 0:02:47.3]} 9. Qe2 {[%clk 0:03:03.6]} 9... Qb6
{[%clk 0:02:42.4]} 10. O-O-O {[%clk 0:03:04]} 10... Bg7 {[%clk 0:02:40.1]} 11.
e4 {[%clk 0:03:03.6]} 11... dxe4 {[%clk 0:02:35.6]} 12. Nxe4 {[%clk 0:03:04.5]}
12... Nxe4 {[%clk 0:02:31.2]} 13. Qxe4 {[%clk 0:03:05.4]} 13... Nf6 {[%clk
0:02:15.1]} 14. Qe2 {[%clk 0:03:04.5]} 14... e6 {[%clk 0:01:59.5]} 15. Be5
{[%clk 0:02:37.7]} 15... O-O {[%clk 0:01:55.1]} 16. Kb1 {[%clk 0:02:37.7]} 16...
Rad8 {[%clk 0:01:48.6]} 17. g4 {[%clk 0:01:51.7]} 17... hxg4 {[%clk 0:01:25.3]}
18. Bxg4 {[%clk 0:01:50.6]} 18... Nd5 {[%clk 0:01:08.6]} 19. Rh3 {[%clk
0:01:34.2]} 19... Bxe5 {[%clk 0:00:51.3]} 20. Qxe5 {[%clk 0:01:35.1]} 20... Qc7
{[%clk 0:00:51.6]} 21. Qg5 {[%clk 0:00:48.2]} 21... Qf4 {[%clk 0:00:49]} 22.
Rdh1 {[%clk 0:00:31.6]} 22... Kg7 {[%clk 0:00:38.3]} 23. c3 {[%clk 0:00:15.9]}
23... Qxg5 {[%clk 0:00:37.9]} 24. hxg5 {[%clk 0:00:16.8]} 24... Rh8 {[%clk
0:00:38.2]} 25. Kc2 {[%clk 0:00:16.6]} 25... Rxh3 {[%clk 0:00:36.6]} 26. Rxh3
{[%clk 0:00:17.5]} 26... Nc7 {[%clk 0:00:21.5]} 27. b4 {[%clk 0:00:13.4]} 27...
Ne8 {[%clk 0:00:21.4]} 28. Kd3 {[%clk 0:00:13.3]} 28... Rd5 {[%clk 0:00:19.7]}
29. f4 {[%clk 0:00:13]} 29... Rd8 {[%clk 0:00:18.5]} 30. Bf3 {[%clk 0:00:12.3]}
30... Nd6 {[%clk 0:00:18.5]} 31. Rh1 {[%clk 0:00:11.9]} 31... Nf5 {[%clk
0:00:18.4]} 32. a4 {[%clk 0:00:10.4]} 32... a6 {[%clk 0:00:15.5]} 33. Kc4 {[%clk
0:00:07.5]} 33... Ne3+ {[%clk 0:00:14.2]} 34. Kc5 {[%clk 0:00:07.4]} 34... Nf5
{[%clk 0:00:05.1]} 35. Kb6 {[%clk 0:00:07.3]} 35... Nd6 {[%clk 0:00:05.6]} 36.
Kc7 {[%clk 0:00:07.3]} 1-0

[Event "Early-Titled-Tuesday-Blitz-May-14-2024"]
[Site "Chess.com"]
[Date "2024.05.14"]
[Round "3"]
[White "manmanlai1"]
[Black "francyIM"]
[Result "0-1"]
[WhiteElo "2593"]
[BlackElo "2878"]
[TimeControl "180+1"]
[EndTime "8:29:44 PDT"]
[Termination "francyIM won on time"]

1. e4 {[%clk 0:02:41.1]} 1... c6 {[%clk 0:02:55.6]} 2. d4 {[%clk 0:02:40.4]}
2... d5 {[%clk 0:02:53]} 3. exd5 {[%clk 0:02:40.9]} 3... cxd5 {[%clk 0:02:53.1]}
4. c4 {[%clk 0:02:37.8]} 4... Nf6 {[%clk 0:02:40.3]} 5. Nc3 {[%clk 0:02:38.2]}
5... g6 {[%clk 0:02:37.5]} 6. Nf3 {[%clk 0:02:34]} 6... Bg7 {[%clk 0:02:37.2]}
7. h3 {[%clk 0:02:34.3]} 7... O-O {[%clk 0:02:35.8]} 8. Bf4 {[%clk 0:02:30.5]}
8... Nc6 {[%clk 0:02:35.7]} 9. c5 {[%clk 0:02:29.4]} 9... Ne4 {[%clk 0:02:35.1]}
10. Bb5 {[%clk 0:02:18.8]} 10... Qa5 {[%clk 0:02:31.9]} 11. Bxc6 {[%clk
0:02:08.1]} 11... bxc6 {[%clk 0:02:32.8]} 12. Bd2 {[%clk 0:02:05]} 12... Nxd2
{[%clk 0:02:26]} 13. Qxd2 {[%clk 0:02:05.9]} 13... Ba6 {[%clk 0:02:25.3]} 14. a3
{[%clk 0:01:58.2]} 14... Rab8 {[%clk 0:02:24.7]} 15. b4 {[%clk 0:01:58.4]} 15...
Qc7 {[%clk 0:02:16.1]} 16. Ne2 {[%clk 0:01:58.3]} 16... e5 {[%clk 0:02:15.6]}
17. O-O {[%clk 0:01:35.4]} 17... e4 {[%clk 0:02:14.6]} 18. Ne1 {[%clk
0:01:28.1]} 18... Bxe2 {[%clk 0:02:13.7]} 19. Qxe2 {[%clk 0:01:27.4]} 19... Bxd4
{[%clk 0:02:14.6]} 20. Rd1 {[%clk 0:01:27.4]} 20... Be5 {[%clk 0:02:13.5]} 21.
Nc2 {[%clk 0:01:27.6]} 21... a5 {[%clk 0:02:11.3]} 22. b5 {[%clk 0:01:02.9]}
22... Rxb5 {[%clk 0:02:03.9]} 23. Rxd5 {[%clk 0:01:03.2]} 23... cxd5 {[%clk
0:02:02.9]} 24. Qxb5 {[%clk 0:01:02.8]} 24... Rb8 {[%clk 0:02:03.8]} 25. Qa4
{[%clk 0:00:46.1]} 25... Qxc5 {[%clk 0:02:03]} 26. Ne3 {[%clk 0:00:46.4]} 26...
d4 {[%clk 0:01:59.8]} 27. Ng4 {[%clk 0:00:46]} 27... Bg7 {[%clk 0:01:59.4]} 28.
Qd7 {[%clk 0:00:35.5]} 28... h5 {[%clk 0:01:50.2]} 29. Nh2 {[%clk 0:00:34.6]}
29... d3 {[%clk 0:01:49.7]} 30. Kh1 {[%clk 0:00:26.7]} 30... Bd4 {[%clk
0:01:46.4]} 31. g4 {[%clk 0:00:21.4]} 31... hxg4 {[%clk 0:01:12.2]} 32. Nxg4
{[%clk 0:00:21.2]} 32... Kg7 {[%clk 0:01:12]} 33. Kg2 {[%clk 0:00:14.6]} 33...
Rb6 {[%clk 0:01:09.5]} 34. Rc1 {[%clk 0:00:13.3]} 34... Qd6 {[%clk 0:00:54.3]}
35. Qe8 {[%clk 0:00:12.9]} 35... Qe6 {[%clk 0:00:47.9]} 36. Qd8 {[%clk
0:00:12.3]} 36... Rd6 {[%clk 0:00:47.9]} 37. Qh4 {[%clk 0:00:12.6]} 37... e3
{[%clk 0:00:33.7]} 38. Rb1 {[%clk 0:00:08.9]} 38... Qd5+ {[%clk 0:00:26.8]} 39.
f3 {[%clk 0:00:07.3]} 39... Rd8 {[%clk 0:00:25.6]} 40. Qh6+ {[%clk 0:00:05.6]}
40... Kg8 {[%clk 0:00:24.8]} 41. Rb6 {[%clk 0:00:05.5]} 41... Qf5 {[%clk
0:00:18.7]} 42. Nxe3 {[%clk 0:00:02.9]} 42... Bxe3 {[%clk 0:00:18.9]} 43. Qxe3
{[%clk 0:00:02.8]} 43... d2 {[%clk 0:00:19.5]} 0-1

[Event "Early-Titled-Tuesday-Blitz-May-14-2024"]
[Site "Chess.com"]
[Date "2024.05.14"]
[Round "3"]
[White "PapaieDudu"]
[Black "Dolphin_2010"]
[Result "0-1"]
[WhiteElo "2379"]
[BlackElo "2621"]
[TimeControl "180+1"]
[EndTime "8:29:45 PDT"]
[Termination "Dolphin_2010 won by resignation"]

1. e4 {[%clk 0:03:00.4]} 1... c6 {[%clk 0:03:00.1]} 2. d4 {[%clk 0:02:57.6]}
2... d5 {[%clk 0:03:01]} 3. e5 {[%clk 0:02:58.1]} 3... Bf5 {[%clk 0:02:49.5]} 4.
c3 {[%clk 0:02:57.4]} 4... e6 {[%clk 0:02:48.2]} 5. Nf3 {[%clk 0:02:52.5]} 5...
c5 {[%clk 0:02:42.5]} 6. Be3 {[%clk 0:02:48.5]} 6... cxd4 {[%clk 0:02:42]} 7.
cxd4 {[%clk 0:02:46.7]} 7... Nc6 {[%clk 0:02:41.7]} 8. Nc3 {[%clk 0:02:44.2]}
8... Bb4 {[%clk 0:02:41.8]} 9. Bb5 {[%clk 0:02:43.4]} 9... Ne7 {[%clk
0:02:40.5]} 10. O-O {[%clk 0:02:40.9]} 10... O-O {[%clk 0:02:40.9]} 11. Rc1
{[%clk 0:02:30.7]} 11... Rc8 {[%clk 0:02:38.6]} 12. Bg5 {[%clk 0:02:27.3]} 12...
Qa5 {[%clk 0:02:36.6]} 13. Ba4 {[%clk 0:02:26.6]} 13... Bg4 {[%clk 0:02:33.4]}
14. Bxc6 {[%clk 0:01:50.4]} 14... Nxc6 {[%clk 0:02:31.4]} 15. a3 {[%clk
0:01:37]} 15... Bxf3 {[%clk 0:02:18.7]} 16. axb4 {[%clk 0:01:27.1]} 16... Bxd1
{[%clk 0:02:17.8]} 17. bxa5 {[%clk 0:01:26.1]} 17... Bb3 {[%clk 0:02:18.3]} 18.
Nb5 {[%clk 0:01:13.4]} 18... Bc4 {[%clk 0:02:06.8]} 19. Nd6 {[%clk 0:01:10.5]}
19... Bxf1 {[%clk 0:01:55.5]} 20. Nxc8 {[%clk 0:01:09.6]} 20... Rxc8 {[%clk
0:01:53.8]} 21. Kxf1 {[%clk 0:01:04.1]} 21... Kf8 {[%clk 0:01:54.2]} 22. Rc5
{[%clk 0:00:49.9]} 22... Ke8 {[%clk 0:01:53]} 23. Be3 {[%clk 0:00:41.3]} 23...
Kd7 {[%clk 0:01:51.1]} 24. Ke2 {[%clk 0:00:40.5]} 24... b6 {[%clk 0:01:45.2]}
25. axb6 {[%clk 0:00:40.6]} 25... axb6 {[%clk 0:01:46.1]} 26. Rb5 {[%clk
0:00:39.9]} 26... Kc7 {[%clk 0:01:46.7]} 27. Kd3 {[%clk 0:00:39]} 27... Ra8
{[%clk 0:01:43.2]} 28. Rb3 {[%clk 0:00:34.5]} 28... Kb7 {[%clk 0:01:30.7]} 29.
Bd2 {[%clk 0:00:31.8]} 29... Ra4 {[%clk 0:01:29.7]} 30. Bc3 {[%clk 0:00:24.4]}
30... Ra1 {[%clk 0:01:27.2]} 31. Ra3 {[%clk 0:00:21.3]} 31... Rh1 {[%clk
0:01:13.7]} 32. h3 {[%clk 0:00:10]} 32... Rh2 {[%clk 0:01:13.7]} 33. b4 {[%clk
0:00:08.7]} 33... Rxg2 {[%clk 0:01:02]} 34. b5 {[%clk 0:00:09.1]} 34... Na7
{[%clk 0:00:59.6]} 35. Rb3 {[%clk 0:00:02.6]} 35... Rh2 {[%clk 0:00:57.1]} 36.
Kc2 {[%clk 0:00:01.4]} 36... Rxf2+ {[%clk 0:00:55.5]} 37. Kd3 {[%clk 0:00:01.5]}
37... Rf3+ {[%clk 0:00:55.8]} 38. Kc2 {[%clk 0:00:01.8]} 38... Rxh3 {[%clk
0:00:45.3]} 39. Rb4 {[%clk 0:00:01.6]} 39... h5 {[%clk 0:00:37.4]} 40. Rb1
{[%clk 0:00:01.5]} 40... Rf3 {[%clk 0:00:35.1]} 41. Rg1 {[%clk 0:00:01.7]} 41...
g6 {[%clk 0:00:34.8]} 42. Rb1 {[%clk 0:00:01.2]} 42... g5 {[%clk 0:00:33.5]} 43.
Bb4 {[%clk 0:00:01.4]} 43... Nxb5 {[%clk 0:00:32.7]} 44. Be7 {[%clk 0:00:01.5]}
44... Nxd4+ {[%clk 0:00:31.3]} 45. Kd2 {[%clk 0:00:02.1]} 45... g4 {[%clk
0:00:29.8]} 46. Bc5 {[%clk 0:00:02.1]} 46... Nb3+ {[%clk 0:00:29]} 47. Rxb3
{[%clk 0:00:01.1]} 47... Rxb3 {[%clk 0:00:29.9]} 0-1

[Event "Early-Titled-Tuesday-Blitz-May-14-2024"]
[Site "Chess.com"]
[Date "2024.05.14"]
[Round "3"]
[White "bangchess21"]
[Black "Schattman"]
[Result "0-1"]
[WhiteElo "2756"]
[BlackElo "2566"]
[TimeControl "180+1"]
[EndTime "8:29:46 PDT"]
[Termination "Schattman won by resignation"]

1. d4 {[%clk 0:03:00.9]} 1... Nf6 {[%clk 0:02:53.1]} 2. Bf4 {[%clk 0:03:00.3]}
2... g6 {[%clk 0:02:52.1]} 3. Nc3 {[%clk 0:02:59.9]} 3... d5 {[%clk 0:02:49.5]}
4. e3 {[%clk 0:03:00.2]} 4... Bg7 {[%clk 0:02:47.5]} 5. h4 {[%clk 0:03:00.5]}
5... h5 {[%clk 0:02:45.5]} 6. Nf3 {[%clk 0:03:00.2]} 6... O-O {[%clk 0:02:39.3]}
7. Ne5 {[%clk 0:03:00.3]} 7... c5 {[%clk 0:02:38.4]} 8. Qd2 {[%clk 0:02:59]}
8... Nc6 {[%clk 0:02:34.9]} 9. f3 {[%clk 0:02:59.2]} 9... Bf5 {[%clk 0:02:26.4]}
10. Bb5 {[%clk 0:02:39.7]} 10... Rc8 {[%clk 0:02:14]} 11. Nxc6 {[%clk
0:02:33.5]} 11... bxc6 {[%clk 0:02:10.1]} 12. Ba6 {[%clk 0:02:33.8]} 12... cxd4
{[%clk 0:01:56.4]} 13. exd4 {[%clk 0:02:34.7]} 13... Rc7 {[%clk 0:01:40]} 14.
Bxc7 {[%clk 0:02:31.1]} 14... Qxc7 {[%clk 0:01:39.5]} 15. O-O-O {[%clk
0:02:29.3]} 15... Rb8 {[%clk 0:01:33.1]} 16. Bd3 {[%clk 0:02:28.7]} 16... Bd7
{[%clk 0:01:22]} 17. Na4 {[%clk 0:02:28]} 17... e5 {[%clk 0:01:13.2]} 18. dxe5
{[%clk 0:02:16.2]} 18... Qxe5 {[%clk 0:01:13.1]} 19. Rhe1 {[%clk 0:02:16.2]}
19... Qd6 {[%clk 0:01:05.8]} 20. Qa5 {[%clk 0:02:16]} 20... Be6 {[%clk
0:00:55.2]} 21. Kb1 {[%clk 0:01:51.9]} 21... Nd7 {[%clk 0:00:50.8]} 22. c3
{[%clk 0:01:40.7]} 22... c5 {[%clk 0:00:35.2]} 23. Qa6 {[%clk 0:01:29.8]} 23...
Nb6 {[%clk 0:00:26.4]} 24. Bc2 {[%clk 0:01:07.9]} 24... Qc7 {[%clk 0:00:25.3]}
25. Ka1 {[%clk 0:00:59.2]} 25... Nxa4 {[%clk 0:00:20.6]} 26. Bxa4 {[%clk
0:00:59.8]} 26... d4 {[%clk 0:00:20.7]} 27. c4 {[%clk 0:00:45.8]} 27... d3
{[%clk 0:00:14.8]} 28. Bb5 {[%clk 0:00:46]} 28... Rb6 {[%clk 0:00:12.1]} 29. Qa5
{[%clk 0:00:21.8]} 29... a6 {[%clk 0:00:12.1]} 30. Rxd3 {[%clk 0:00:22.7]} 30...
axb5 {[%clk 0:00:11.3]} 31. Rb3 {[%clk 0:00:23.4]} 31... b4 {[%clk 0:00:10.9]}
32. Qa8+ {[%clk 0:00:23]} 32... Rb8 {[%clk 0:00:09.2]} 33. Qe4 {[%clk
0:00:22.6]} 33... Rd8 {[%clk 0:00:08.6]} 34. g4 {[%clk 0:00:22]} 34... Rd4
{[%clk 0:00:07.3]} 35. Qa8+ {[%clk 0:00:22.2]} 35... Kh7 {[%clk 0:00:06.7]} 36.
gxh5 {[%clk 0:00:21.7]} 36... Qd6 {[%clk 0:00:06.8]} 37. hxg6+ {[%clk
0:00:21.5]} 37... fxg6 {[%clk 0:00:07]} 38. a4 {[%clk 0:00:20.9]} 38... Rd1+
{[%clk 0:00:04.7]} 39. Rxd1 {[%clk 0:00:20.7]} 39... Qxd1+ {[%clk 0:00:04.6]}
40. Ka2 {[%clk 0:00:21.6]} 40... Bxc4 {[%clk 0:00:04.7]} 0-1